[Event "Romanian-ch Women 2022"]
[Site "Eforie Nord"]
[Date "2022.02.26"]
[Round "8.6"]
[White "Dragomirescu, Angela"]
[Black "Nikanova, Ekaterina"]
[Result "1/2-1/2"]
[ECO "A46"]
[WhiteElo "2167"]
[BlackElo "1935"]
[Annotator "NA"]
[PlyCount "93"]
[EventDate "2022.02.20"]
[EventType "swiss"]
[EventCountry "ROU"]
[SourceTitle "playchess.com"]
[Source "ChessBase"]
[SourceQuality "1"]
[TimeControl "40/5400+30:900+30"]

1. d4 {[%emt 0:00:04]} Nf6 {[%emt 0:00:12]} 2. Nf3 {[%emt 0:00:05]} e6 {[%emt 0:00:07]} 3. g3 {[%emt 0:00:34]} b5 {[%emt 0:00:21]} 4. Bg2 {[%emt 0:00:13]} Bb7 {[%emt 0:00:03]} 5. O-O {[%emt 0:02:12]} c5 {[%emt 0:00:29]} 6. Bg5 {[%emt 0:07:28]} cxd4 {[%emt 0:01:42]} 7. Nxd4 {[%emt 0:03:14]} Bxg2 {[%emt 0:00:12]} 8. Kxg2 {[%emt 0:00:05]} Nc6 {[%emt 0:10:26]} 9. Nxb5 {[%emt 0:05:14]} Rb8 {[%emt 0:00:35]} 10. c4 {[%emt 0:18:40]} a6 {[%emt 0:04:51]} 11. Nd4 {[%emt 0:04:18]} Qb6 {[%emt 0:00:30]} 12. Nb3 {[%emt 0:00:30]} Ne5 {[%emt 0:00:30]} 13. N1d2 {[%emt 0:00:30]} Nxc4 {[%emt 0:00:30]} 14. Nxc4 {[%emt 0:00:30]} Qc6+ {[%emt 0:34:34]} 15. Kg1 {[%emt 0:19:19]} Qxc4 {[%emt 0:00:30]} 16. Bf4 {[%emt 0:00:30]} Rd8 {[%emt 0:00:30]} 17. Rc1 {[%emt 0:00:30]} Qd5 {[%emt 0:00:30]} 18. Bc7 {[%emt 0:00:30]} Qxd1 {[%emt 0:00:30]} 19. Rfxd1 {[%emt 0:00:30]} Ra8 {[%emt 0:00:30]} 20. Be5 {[%emt 0:00:30]} Be7 {[%emt 0:00:30]} 21. Rc7 {[%emt 0:00:30]} O-O {[%emt 0:00:30]} 22. Bxf6 {[%emt 0:00:30]} Bxf6 {[%emt 0:00:30]} 23. Rdxd7 {[%emt 0:00:30]} Bxb2 {[%emt 0:00:30]} 24. Ra7 {[%emt 0:00:30]} f5 {[%emt 0:00:30]} 25. e3 {[%emt 0:00:30]} Rfc8 {[%emt 0:00:30]} 26. Rxa8 {[%emt 0:00:30]} Rxa8 {[%emt 0:00:30]} 27. Re7 {[%emt 0:00:30]} e5 {[%emt 0:00:30]} 28. Rb7 {[%emt 0:00:30]} Ba3 {[%emt 0:00:30]} 29. Na5 {[%emt 0:00:30]} e4 {[%emt 0:00:30]} 30. h4 {[%emt 0:00:30]} Bf8 {[%emt 0:00:30]} 31. Nb3 {[%emt 0:00:30]} g6 {[%emt 0:00:30]} 32. Kf1 {[%emt 0:00:30]} a5 {[%emt 0:00:30]} 33. a4 {[%emt 0:00:30]} Bb4 {[%emt 0:00:30]} 34. Rb5 {[%emt 0:00:30]} Kg7 {[%emt 0:00:30]} 35. h5 {[%emt 0:00:30]} Kh6 {[%emt 0:00:30]} 36. hxg6 {[%emt 0:00:30]} hxg6 {[%emt 0:00:30]} 37. Kg2 {[%emt 0:00:30]} Ra6 {[%emt 0:00:30]} 38. f3 {[%emt 0:00:30]} exf3+ {[%emt 0:00:30]} 39. Kxf3 {[%emt 0:00:30]} Kg7 {[%emt 0:00:30]} 40. Rb7+ {[%emt 0:00:30]} Kf6 {[%emt 0:00:30]} 41. Rb5 {[%emt 0:15:30]} Kg7 {[%emt 0:15:30]} 42. Rd5 {[%emt 0:00:30]} Kf6 {[%emt 0:00:30]} 43. Rb5 {[%emt 0:00:30]} Kg7 {[%emt 0:37:39]} 44. Rb7+ {[%emt 0:19:57]} Kf6 {[%emt 0:00:00]} 45. Rb5 {[%emt 0:00:17]} Kg7 {[%emt 0:00:00]} 46. Rd5 {[%emt 0:11:56]} Kf6 {[%emt 0:00:00]} 47. Rb5 {[%emt 0:02:32]} 1/2-1/2

[Event "Romanian-ch Women 2022"]
[Site "Eforie Nord"]
[Date "2022.02.26"]
[Round "8.7"]
[White "Cosman, Andreea-Marioara"]
[Black "Schiopu, Oana-Magdalena"]
[Result "1-0"]
[ECO "E51"]
[WhiteElo "2127"]
[BlackElo "1534"]
[Annotator "ChessBase"]
[PlyCount "81"]
[EventDate "2022.02.20"]
[EventType "swiss"]
[EventCountry "ROU"]
[SourceTitle "playchess.com"]
[Source "ChessBase"]
[SourceQuality "1"]
[TimeControl "40/5400+30:900+30"]

1. d4 {[%emt 0:00:03]} Nf6 {[%emt 0:00:08]} 2. c4 {[%emt 0:00:05]} e6 {[%emt 0:00:16]} 3. Nc3 {[%emt 0:00:10]} Bb4 {[%emt 0:00:27]} 4. Bd2 {[%emt 0:00:10]} O-O {[%emt 0:00:58]} 5. e3 {[%emt 0:00:06]} d5 {[%emt 0:01:34]} 6. Nf3 {[%emt 0:00:09]} b6 {[%emt 0:02:11]} 7. cxd5 {[%emt 0:00:07]} exd5 {[%emt 0:00:27]} 8. Rc1 {[%emt 0:00:08]} Bf5 {[%emt 0:03:54]} 9. Ne5 {[%emt 0:02:19]} a6 {[%emt 0:04:46]} 10. Be2 {[%emt 0:00:40]} Re8 {[%emt 0:00:44]} 11. O-O {[%emt 0:00:13]} Bd6 {[%emt 0:01:53]} 12. f4 {[%emt 0:00:09]} Nbd7 {[%emt 0:04:56]} 13. Be1 {[%emt 0:03:16]} c5 {[%emt 0:16:02]} 14. Bh4 {[%emt 0:00:20]} Qb8 {[%emt 0:00:39]} 15. g4 {[%emt 0:05:01]} Bg6 {[%emt 0:04:40]} 16. Bxf6 {[%emt 0:08:01]} Nxf6 {[%emt 0:01:49]} 17. f5 {[%emt 0:00:07]} Bxe5 {[%emt 0:00:06]} 18. dxe5 {[%emt 0:00:05]} Qxe5 {[%emt 0:00:08]} 19. fxg6 {[%emt 0:02:48]} Qxe3+ {[%emt 0:03:26]} 20. Kh1 {[%emt 0:02:47]} hxg6 {[%emt 0:00:26]} 21. Bf3 {[%emt 0:03:10]} Rad8 {[%emt 0:05:06]} 22. Nxd5 {[%emt 0:10:42]} Qg5 {[%emt 0:12:24]} 23. Nxf6+ {[%emt 0:02:26]} gxf6 {[%emt 0:00:20]} 24. Qa4 {[%emt 0:10:44]} Re3 {[%emt 0:05:00]} 25. Rcd1 {[%emt 0:01:31]} Rxd1 {[%emt 0:04:24]} 26. Qxd1 {[%emt 0:00:42]} Kg7 {[%emt 0:01:26]} 27. Qd6 {[%emt 0:13:24]} Re6 {[%emt 0:03:16]} 28. Qg3 {[%emt 0:02:27]} Qe5 {[%emt 0:02:08]} 29. Qxe5 {[%emt 0:02:16]} fxe5 {[%emt 0:00:09]} 30. Bd5 {[%emt 0:03:24]} Re7 {[%emt 0:00:07]} 31. g5 {[%emt 0:01:25]} Rd7 {[%emt 0:00:29]} 32. Bc6 {[%emt 0:01:48]} Rd6 {[%emt 0:01:35]} 33. Be8 {[%emt 0:01:02]} f5 {[%emt 0:00:33]} 34. gxf6+ {[%emt 0:00:08]} Rxf6 {[%emt 0:00:04]} 35. Rxf6 {[%emt 0:00:15]} Kxf6 {[%emt 0:00:05]} 36. Kg2 {[%emt 0:00:05]} b5 {[%emt 0:05:02]} 37. Kf3 {[%emt 0:00:24]} b4 {[%emt 0:00:38]} 38. b3 {[%emt 0:00:54]} Kf5 {[%emt 0:01:21]} 39. Bd7+ {[%emt 0:00:21]} Kf6 {[%emt 0:00:12]} 40. Ke4 {[%emt 0:00:00]} Ke7 {[%emt 0:00:00]} 41. Bc8 {[%emt 0:01:57]} 1-0

[Event "Romanian-ch Women 2022"]
[Site "Eforie Nord"]
[Date "2022.02.26"]
[Round "8.8"]
[White "Hoanca, Alexia-Ioana"]
[Black "Obada, Ema"]
[Result "1-0"]
[ECO "A08"]
[WhiteElo "1710"]
[BlackElo "2010"]
[Annotator "NA"]
[PlyCount "57"]
[EventDate "2022.02.20"]
[EventType "swiss"]
[EventCountry "ROU"]
[SourceTitle "playchess.com"]
[Source "ChessBase"]
[SourceQuality "1"]
[TimeControl "40/5400+30:900+30"]

1. e4 {[%emt 1:31:00]} e6 {[%emt 1:31:00]} 2. d3 {[%emt 0:00:30]} d5 {[%emt 0:00:30]} 3. Nd2 {[%emt 0:00:30]} c5 {[%emt 0:00:30]} 4. Ngf3 {[%emt 0:00:30]} Nc6 {[%emt 0:00:30]} 5. g3 {[%emt 0:00:30]} Bd6 {[%emt 0:00:30]} 6. Bg2 {[%emt 0:00:30]} Nge7 {[%emt 0:00:30]} 7. O-O {[%emt 0:00:30]} O-O {[%emt 0:00:30]} 8. Nh4 {[%emt 0:00:30]} b6 {[%emt 0:00:30]} 9. f4 {[%emt 0:00:30]} dxe4 {[%emt 0:00:30]} 10. dxe4 {[%emt 0:00:30]} Ba6 {[%emt 0:00:30]} 11. Re1 {[%emt 0:00:30]} Bc7 {[%emt 0:00:30]} 12. c3 {[%emt 0:00:30]} Bd3 {[%emt 0:00:30]} 13. Qh5 {[%emt 0:00:30]} Qd7 {[%emt 0:00:30]} 14. Ndf3 {[%emt 0:00:30]} c4 {[%emt 0:00:30]} 15. g4 {[%emt 0:00:30]} f5 {[%emt 0:00:30]} 16. gxf5 {[%emt 0:00:30]} exf5 {[%emt 0:00:30]} 17. e5 {[%emt 0:00:30]} h6 18. Ng6 {[%emt 0:00:30]} Nxg6 {[%emt 0:01:00]} 19. Qxg6 {[%emt 0:00:30]} Ne7 {[%emt 0:00:30]} 20. Qh5 {[%emt 0:00:30]} Be4 {[%emt 0:00:30]} 21. Rxe4 {[%emt 0:00:30]} fxe4 {[%emt 0:00:30]} 22. Nd4 {[%emt 0:00:30]} Nc6 23. Bh3 {[%emt 0:00:30]} Qe8 {[%emt 0:01:00]} 24. Qxe8 {[%emt 0:00:30]} Raxe8 {[%emt 0:00:30]} 25. Nxc6 {[%emt 0:00:30]} b5 {[%emt 0:00:30]} 26. Be3 {[%emt 0:00:30]} g5 {[%emt 0:00:30]} 27. Bd7 {[%emt 0:00:30]} Ra8 {[%emt 0:00:30]} 28. f5 {[%emt 0:00:30]} a5 {[%emt 0:00:30]} 29. Bc5 {[%emt 0:00:30]} 1-0

[Event "Romanian-ch Women 2022"]
[Site "Eforie Nord"]
[Date "2022.02.26"]
[Round "8.9"]
[White "Batagan, Ilinca-Petra"]
[Black "Bucur, Denisa-Andreea"]
[Result "1/2-1/2"]
[ECO "C01"]
[WhiteElo "1881"]
[BlackElo "2023"]
[Annotator "NA"]
[PlyCount "47"]
[EventDate "2022.02.20"]
[EventType "swiss"]
[EventCountry "ROU"]
[SourceTitle "playchess.com"]
[Source "ChessBase"]
[SourceQuality "1"]
[TimeControl "40/5400+30:900+30"]

1. e4 {[%emt 0:00:04]} e6 {[%emt 0:00:18]} 2. d4 {[%emt 0:00:18]} d5 {[%emt 0:00:08]} 3. exd5 {[%emt 0:00:30]} exd5 {[%emt 0:00:05]} 4. c4 {[%emt 0:00:10]} Nf6 {[%emt 0:01:03]} 5. Nf3 {[%emt 0:00:49]} Bg4 {[%emt 0:02:10]} 6. Be2 {[%emt 0:09:38]} dxc4 {[%emt 0:18:14]} 7. Bxc4 {[%emt 0:07:37]} Bb4+ {[%emt 0:00:38]} 8. Bd2 {[%emt 0:08:12]} Qe7+ {[%emt 0:07:12]} 9. Qe2 {[%emt 0:03:31]} Qxe2+ {[%emt 0:00:41]} 10. Kxe2 {[%emt 0:02:03]} Bxd2 {[%emt 0:05:15]} 11. Nbxd2 {[%emt 0:01:18]} O-O {[%emt 0:00:24]} 12. Rhe1 {[%emt 0:02:59]} Nc6 {[%emt 0:06:51]} 13. Nb3 {[%emt 0:07:23]} Rad8 {[%emt 0:06:56]} 14. Rad1 {[%emt 0:01:51]} Nb4 {[%emt 0:03:50]} 15. Kf1 {[%emt 0:04:50]} Nbd5 {[%emt 0:03:51]} 16. Nc5 {[%emt 0:07:06]} b6 {[%emt 0:04:08]} 17. Ne4 {[%emt 0:01:13]} Bxf3 {[%emt 0:08:04]} 18. Nxf6+ {[%emt 0:01:44]} Nxf6 {[%emt 0:00:38]} 19. gxf3 {[%emt 0:00:06]} Rd7 {[%emt 0:04:43]} 20. Bb5 {[%emt 0:07:42]} Rd5 {[%emt 0:00:08]} 21. a4 {[%emt 0:00:45]} Rh5 {[%emt 0:07:21]} 22. Re7 {[%emt 0:07:40]} Nd5 {[%emt 0:01:18]} 23. Re5 {[%emt 0:00:12]} g6 {[%emt 0:03:14]} 24. Rxh5 {[%emt 0:01:10]} 1/2-1/2

[Event "Romanian-ch Women 2022"]
[Site "Eforie Nord"]
[Date "2022.02.26"]
[Round "8.10"]
[White "Trifoi, Mihaela-Ioana"]
[Black "Schiopu, Andreea-Alexandra"]
[Result "1/2-1/2"]
[ECO "B13"]
[WhiteElo "1893"]
[BlackElo "1733"]
[Annotator "NA"]
[PlyCount "92"]
[EventDate "2022.02.20"]
[EventType "swiss"]
[EventCountry "ROU"]
[SourceTitle "playchess.com"]
[Source "ChessBase"]
[SourceQuality "1"]
[TimeControl "40/5400+30:900+30"]

1. e4 {[%emt 0:00:03]} c6 {[%emt 0:03:47]} 2. d4 {[%emt 0:00:08]} d5 {[%emt 0:00:13]} 3. exd5 {[%emt 0:00:09]} cxd5 {[%emt 0:00:27]} 4. Bd3 {[%emt 0:00:20]} Nc6 {[%emt 0:00:34]} 5. c3 {[%emt 0:00:11]} Nf6 {[%emt 0:00:40]} 6. Bf4 {[%emt 0:00:32]} Bg4 {[%emt 0:00:40]} 7. Qb3 {[%emt 0:00:07]} Qd7 {[%emt 0:00:41]} 8. Nd2 {[%emt 0:01:05]} e6 {[%emt 0:02:23]} 9. Ngf3 {[%emt 0:00:11]} Bd6 {[%emt 0:01:46]} 10. Bxd6 {[%emt 0:08:22]} Qxd6 {[%emt 0:00:03]} 11. O-O {[%emt 0:00:07]} O-O {[%emt 0:00:22]} 12. Rfe1 {[%emt 0:00:26]} Qc7 {[%emt 0:03:50]} 13. Qc2 {[%emt 0:07:45]} Rfc8 {[%emt 0:03:33]} 14. Qb1 {[%emt 0:02:33]} Ne7 {[%emt 0:02:19]} 15. Ne5 {[%emt 0:01:10]} Bf5 {[%emt 0:00:53]} 16. h3 {[%emt 0:00:43]} b5 {[%emt 0:03:08]} 17. a3 {[%emt 0:00:57]} a5 {[%emt 0:02:32]} 18. g4 {[%emt 0:01:34]} Bxd3 {[%emt 0:01:19]} 19. Qxd3 {[%emt 0:01:59]} b4 {[%emt 0:01:56]} 20. axb4 {[%emt 0:03:49]} axb4 {[%emt 0:00:18]} 21. Rxa8 {[%emt 0:00:28]} Rxa8 {[%emt 0:00:05]} 22. cxb4 {[%emt 0:01:01]} Qb7 {[%emt 0:05:50]} 23. Qf3 {[%emt 0:05:31]} Nc6 {[%emt 0:02:58]} 24. Nxc6 {[%emt 0:00:48]} Qxc6 {[%emt 0:00:15]} 25. Qc3 {[%emt 0:00:59]} Qb7 {[%emt 0:02:06]} 26. Rc1 {[%emt 0:05:28]} Rb8 {[%emt 0:03:17]} 27. Ra1 {[%emt 0:02:37]} h6 {[%emt 0:01:59]} 28. Ra4 {[%emt 0:00:29]} Rc8 {[%emt 0:01:46]} 29. Qd3 {[%emt 0:03:57]} Rc1+ {[%emt 0:03:50]} 30. Kg2 {[%emt 0:01:11]} Ne4 {[%emt 0:04:47]} 31. Nb3 {[%emt 0:05:17]} Rc4 {[%emt 0:10:06]} 32. f3 {[%emt 0:07:11]} Nf6 {[%emt 0:05:14]} 33. Nc5 {[%emt 0:00:44]} Qb8 {[%emt 0:09:00]} 34. b5 {[%emt 0:09:26]} Qxb5 {[%emt 0:03:31]} 35. b3 {[%emt 0:00:16]} Rxc5 {[%emt 0:00:22]} 36. Ra8+ {[%emt 0:00:05]} Ne8 {[%emt 0:00:08]} 37. Rxe8+ {[%emt 0:00:07]} Qxe8 {[%emt 0:00:02]} 38. dxc5 {[%emt 0:00:06]} Qc6 {[%emt 0:00:52]} 39. b4 {[%emt 0:00:30]} Kf8 {[%emt 0:05:51]} 40. Qc3 {[%emt 0:00:00]} f6 {[%emt 0:00:00]} 41. Qc2 {[%emt 0:08:00]} Ke7 {[%emt 0:07:06]} 42. Qa2 {[%emt 0:02:44]} Qb5 {[%emt 0:02:13]} 43. Qa7+ {[%emt 0:00:58]} Kf8 {[%emt 0:00:51]} 44. Qb6 {[%emt 0:01:16]} Qe2+ {[%emt 0:00:32]} 45. Kg3 {[%emt 0:00:09]} Qe1+ {[%emt 0:00:13]} 46. Kg2 {[%emt 0:00:07]} Qe2+ {[%emt 0:00:05]} 1/2-1/2

[Event "Romanian-ch Women 2022"]
[Site "Eforie Nord"]
[Date "2022.02.26"]
[Round "8.11"]
[White "Marin, Irina-Luiza"]
[Black "Matasaru, Stephanie"]
[Result "1-0"]
[ECO "A36"]
[WhiteElo "2058"]
[BlackElo "1861"]
[Annotator "ChessBase"]
[PlyCount "77"]
[EventDate "2022.02.20"]
[EventType "swiss"]
[EventCountry "ROU"]
[SourceTitle "playchess.com"]
[Source "ChessBase"]
[SourceQuality "1"]
[TimeControl "40/5400+30:900+30"]

1. c4 {[%emt 0:00:03]} c5 {[%emt 0:00:04]} 2. g3 {[%emt 0:00:11]} g6 {[%emt 0:00:05]} 3. Bg2 {[%emt 0:00:06]} Bg7 {[%emt 0:00:05]} 4. Nc3 {[%emt 0:00:14]} Nc6 {[%emt 0:00:04]} 5. e4 {[%emt 0:00:09]} d6 {[%emt 0:00:11]} 6. Nge2 {[%emt 0:00:10]} Nf6 {[%emt 0:00:05]} 7. O-O {[%emt 0:00:09]} O-O {[%emt 0:00:05]} 8. d3 {[%emt 0:00:05]} Rb8 {[%emt 0:00:26]} 9. h3 {[%emt 0:00:17]} a6 {[%emt 0:00:09]} 10. a4 {[%emt 0:00:08]} Ne8 {[%emt 0:00:21]} 11. Be3 {[%emt 0:00:36]} Nd4 {[%emt 0:00:45]} 12. Rb1 {[%emt 0:00:35]} Bd7 {[%emt 0:14:00]} 13. b4 {[%emt 0:02:29]} Nc7 {[%emt 0:07:28]} 14. b5 {[%emt 0:04:42]} axb5 {[%emt 0:00:29]} 15. axb5 {[%emt 0:00:17]} e6 {[%emt 0:11:29]} 16. Qd2 {[%emt 0:04:00]} b6 {[%emt 0:05:24]} 17. Bg5 {[%emt 0:13:01]} Qc8 {[%emt 0:03:02]} 18. Be7 {[%emt 0:02:03]} Re8 {[%emt 0:00:27]} 19. Bxd6 {[%emt 0:00:12]} e5 {[%emt 0:00:52]} 20. Bxc7 {[%emt 0:08:55]} Qxc7 {[%emt 0:00:16]} 21. Nxd4 {[%emt 0:02:57]} exd4 {[%emt 0:03:07]} 22. Nd5 {[%emt 0:00:09]} Qd8 {[%emt 0:01:03]} 23. f4 {[%emt 0:01:18]} f6 {[%emt 0:04:32]} 24. Ra1 {[%emt 0:02:52]} Be6 {[%emt 0:05:02]} 25. Ra7 {[%emt 0:00:52]} Bxd5 {[%emt 0:01:52]} 26. cxd5 {[%emt 0:00:11]} Ra8 {[%emt 0:01:10]} 27. Rfa1 {[%emt 0:03:49]} Rxa7 {[%emt 0:00:08]} 28. Rxa7 {[%emt 0:00:05]} Qd6 {[%emt 0:02:49]} 29. h4 {[%emt 0:05:10]} Bh6 {[%emt 0:04:03]} 30. Qa2 {[%emt 0:04:04]} Bf8 {[%emt 0:05:15]} 31. Bh3 {[%emt 0:02:48]} Kh8 {[%emt 0:04:38]} 32. Rd7 {[%emt 0:01:11]} Qb8 {[%emt 0:00:43]} 33. d6 {[%emt 0:01:57]} Rd8 {[%emt 0:02:24]} 34. Qf7 {[%emt 0:05:27]} Rxd7 {[%emt 0:00:22]} 35. Bxd7 {[%emt 0:00:05]} Qd8 {[%emt 0:04:18]} 36. e5 {[%emt 0:01:26]} fxe5 {[%emt 0:00:07]} 37. fxe5 {[%emt 0:00:08]} c4 {[%emt 0:01:01]} 38. Be6 {[%emt 0:01:14]} Bg7 {[%emt 0:01:42]} 39. d7 {[%emt 0:02:11]} 1-0

[Event "Romanian-ch Women 2022"]
[Site "Eforie Nord"]
[Date "2022.02.26"]
[Round "8.12"]
[White "Anghel, Maria"]
[Black "Lolici, Iselin-Amanda"]
[Result "1-0"]
[ECO "E67"]
[WhiteElo "1834"]
[BlackElo "1907"]
[Annotator "NA"]
[PlyCount "87"]
[EventDate "2022.02.20"]
[EventType "swiss"]
[EventCountry "ROU"]
[SourceTitle "playchess.com"]
[Source "ChessBase"]
[SourceQuality "1"]
[TimeControl "40/5400+30:900+30"]

1. d4 {[%emt 0:00:06]} g6 {[%emt 0:00:11]} 2. Nf3 {[%emt 0:00:09]} Bg7 {[%emt 0:00:05]} 3. c4 {[%emt 0:00:10]} d6 {[%emt 0:00:07]} 4. g3 {[%emt 0:00:09]} Nf6 {[%emt 0:01:12]} 5. Bg2 {[%emt 0:00:10]} O-O {[%emt 0:00:04]} 6. O-O {[%emt 0:00:14]} Nbd7 {[%emt 0:01:02]} 7. Nc3 {[%emt 0:00:13]} c6 {[%emt 0:00:23]} 8. e4 {[%emt 0:00:51]} Qc7 {[%emt 0:02:23]} 9. h3 {[%emt 0:00:27]} Rb8 {[%emt 0:02:25]} 10. Re1 {[%emt 0:02:12]} Rd8 {[%emt 0:04:36]} 11. Qe2 {[%emt 0:09:12]} e5 {[%emt 0:04:04]} 12. Be3 {[%emt 0:05:31]} Nf8 {[%emt 0:11:51]} 13. dxe5 {[%emt 0:05:26]} dxe5 {[%emt 0:00:07]} 14. Nxe5 {[%emt 0:03:24]} Nxe4 {[%emt 0:05:23]} 15. Nxe4 {[%emt 0:00:41]} Bxe5 {[%emt 0:01:04]} 16. Bg5 {[%emt 0:00:26]} Re8 {[%emt 0:01:52]} 17. Bf4 {[%emt 0:22:16]} Nd7 {[%emt 0:11:12]} 18. Nf6+ {[%emt 0:01:47]} Nxf6 {[%emt 0:00:25]} 19. Bxe5 {[%emt 0:00:09]} Qe7 {[%emt 0:00:38]} 20. Qd2 {[%emt 0:04:09]} Be6 {[%emt 0:02:45]} 21. Bxb8 {[%emt 0:02:33]} Rxb8 {[%emt 0:00:07]} 22. Qf4 {[%emt 0:02:25]} Rf8 {[%emt 0:09:01]} 23. Rad1 {[%emt 0:08:19]} Kg7 {[%emt 0:03:43]} 24. Qe5 {[%emt 0:02:30]} Qb4 {[%emt 0:04:23]} 25. g4 {[%emt 0:03:40]} h6 {[%emt 0:01:52]} 26. f4 {[%emt 0:00:58]} Qxc4 {[%emt 0:12:32]} 27. g5 {[%emt 0:00:51]} hxg5 {[%emt 0:02:13]} 28. fxg5 {[%emt 0:00:21]} Qxa2 {[%emt 0:01:05]} 29. Qxf6+ {[%emt 0:02:16]} Kg8 {[%emt 0:01:49]} 30. Re4 {[%emt 0:02:03]} Qb3 {[%emt 0:01:18]} 31. Bf3 {[%emt 0:04:17]} Bd5 {[%emt 0:03:23]} 32. Rh4 {[%emt 0:11:39]} Qe3+ {[%emt 0:00:11]} 33. Kg2 {[%emt 0:00:10]} Bxf3+ {[%emt 0:01:11]} 34. Qxf3 {[%emt 0:00:43]} Qxg5+ {[%emt 0:00:14]} 35. Qg4 {[%emt 0:01:16]} Qxg4+ {[%emt 0:02:33]} 36. Rxg4 {[%emt 0:00:38]} Re8 {[%emt 0:00:09]} 37. Kf3 {[%emt 0:01:23]} Re5 {[%emt 0:03:24]} 38. Rd7 {[%emt 0:02:10]} Rb5 {[%emt 0:00:57]} 39. b4 {[%emt 0:00:40]} a6 {[%emt 0:02:16]} 40. Rf4 {[%emt 0:00:00]} f5 {[%emt 0:00:00]} 41. Rfd4 {[%emt 0:01:43]} g5 {[%emt 0:01:57]} 42. Rc7 {[%emt 0:00:52]} Rd5 {[%emt 0:01:31]} 43. Rxd5 {[%emt 0:00:12]} cxd5 {[%emt 0:00:03]} 44. Rxb7 {[%emt 0:00:19]} 1-0

[Event "Romanian-ch Women 2022"]
[Site "Eforie Nord"]
[Date "2022.02.27"]
[Round "9.3"]
[White "Lehaci, Miruna-Daria"]
[Black "Hoanca, Alexia-Ioana"]
[Result "1-0"]
[ECO "B13"]
[WhiteElo "2125"]
[BlackElo "1710"]
[Annotator "ChessBase"]
[PlyCount "119"]
[EventDate "2022.02.20"]
[EventType "swiss"]
[EventCountry "ROU"]
[SourceTitle "playchess.com"]
[Source "ChessBase"]
[SourceQuality "1"]
[TimeControl "40/5400+30:900+30"]

1. e4 {[%emt 0:00:03]} c6 {[%emt 0:00:04]} 2. d4 {[%emt 0:00:03]} d5 {[%emt 0:00:04]} 3. exd5 {[%emt 0:00:03]} cxd5 {[%emt 0:00:08]} 4. Bf4 {[%emt 0:00:06]} Nc6 {[%emt 0:01:10]} 5. c3 {[%emt 0:00:05]} Nf6 {[%emt 0:00:35]} 6. Nd2 {[%emt 0:00:06]} Bg4 {[%emt 0:00:27]} 7. Qb3 {[%emt 0:00:06]} Qc8 {[%emt 0:00:45]} 8. Ngf3 {[%emt 0:00:26]} e6 {[%emt 0:00:58]} 9. Bd3 {[%emt 0:00:06]} Be7 {[%emt 0:00:39]} 10. O-O {[%emt 0:00:06]} O-O {[%emt 0:00:21]} 11. Ne5 {[%emt 0:00:24]} Bh5 {[%emt 0:01:32]} 12. Qc2 {[%emt 0:01:24]} Bg6 {[%emt 0:09:20]} 13. Nxg6 {[%emt 0:00:11]} hxg6 {[%emt 0:00:07]} 14. Nf3 {[%emt 0:00:28]} Qd8 {[%emt 0:01:54]} 15. Rae1 {[%emt 0:02:57]} Bd6 {[%emt 0:01:16]} 16. Bxd6 {[%emt 0:01:48]} Qxd6 {[%emt 0:00:07]} 17. Ne5 {[%emt 0:00:10]} Nd7 {[%emt 0:03:06]} 18. f4 {[%emt 0:02:03]} Rab8 {[%emt 0:00:57]} 19. Re3 {[%emt 0:03:00]} b5 {[%emt 0:03:51]} 20. Rh3 {[%emt 0:08:35]} Ne7 {[%emt 0:08:35]} 21. a3 {[%emt 0:22:52]} a5 {[%emt 0:04:14]} 22. b4 {[%emt 0:13:51]} axb4 {[%emt 0:05:07]} 23. axb4 {[%emt 0:00:05]} Rfc8 {[%emt 0:04:04]} 24. Qd2 {[%emt 0:01:58]} Qc7 {[%emt 0:04:32]} 25. Bb1 {[%emt 0:01:14]} Ra8 {[%emt 0:03:10]} 26. Qe2 {[%emt 0:04:30]} Nxe5 {[%emt 0:01:43]} 27. fxe5 {[%emt 0:00:12]} Ra3 {[%emt 0:05:54]} 28. Qf2 {[%emt 0:05:58]} Nf5 {[%emt 0:02:16]} 29. Bxf5 {[%emt 0:06:10]} gxf5 {[%emt 0:01:02]} 30. Qh4 {[%emt 0:00:13]} Kf8 {[%emt 0:01:41]} 31. Qh8+ {[%emt 0:01:06]} Ke7 {[%emt 0:00:26]} 32. Qxg7 {[%emt 0:00:07]} Rf8 {[%emt 0:01:53]} 33. Qg3 {[%emt 0:03:21]} Qc4 {[%emt 0:05:41]} 34. Rc1 {[%emt 0:02:21]} Raa8 {[%emt 0:06:00]} 35. Qg5+ {[%emt 0:01:02]} Kd7 {[%emt 0:01:24]} 36. Rf3 {[%emt 0:04:50]} Rg8 {[%emt 0:02:00]} 37. Qe3 {[%emt 0:02:21]} Rg4 {[%emt 0:04:38]} 38. Rf2 {[%emt 0:01:45]} Rc8 {[%emt 0:01:49]} 39. Rfc2 {[%emt 0:01:24]} Re4 {[%emt 0:04:55]} 40. Qf2 {[%emt 0:00:00]} Ra8 {[%emt 0:00:00]} 41. Qd2 {[%emt 0:06:13]} Rg4 {[%emt 0:03:06]} 42. Re1 {[%emt 0:04:45]} Rag8 {[%emt 0:02:25]} 43. Re2 {[%emt 0:01:43]} f4 {[%emt 0:05:23]} 44. Rf2 {[%emt 0:00:37]} Qb3 {[%emt 0:06:48]} 45. Rb2 {[%emt 0:01:36]} Qc4 {[%emt 0:01:45]} 46. Ra2 {[%emt 0:01:38]} f3 {[%emt 0:01:14]} 47. g3 {[%emt 0:01:03]} Qb3 {[%emt 0:00:58]} 48. Rxf3 {[%emt 0:01:23]} f5 {[%emt 0:02:19]} 49. exf6 {[%emt 0:01:00]} Qb1+ {[%emt 0:00:11]} 50. Kg2 {[%emt 0:00:34]} Rh4 {[%emt 0:00:30]} 51. Rf4 {[%emt 0:08:53]} Rxf4 {[%emt 0:07:56]} 52. Ra7+ {[%emt 0:00:04]} Kc6 {[%emt 0:00:00]} 53. Qxf4 {[%emt 0:00:06]} Qc2+ {[%emt 0:00:00]} 54. Qf2 {[%emt 0:00:05]} Qe4+ {[%emt 0:00:00]} 55. Kg1 {[%emt 0:00:10]} Rg5 {[%emt 0:00:00]} 56. Ra6+ {[%emt 0:00:41]} Kb7 {[%emt 0:00:00]} 57. Ra2 {[%emt 0:01:17]} Rf5 {[%emt 0:00:00]} 58. Qe2 {[%emt 0:00:08]} Qb1+ {[%emt 0:00:27]} 59. Kg2 {[%emt 0:00:05]} Rxf6 {[%emt 0:00:05]} 60. Qxb5+ {[%emt 0:00:14]} 1-0